Cogmind - Beta 10.1 @@@ ROGUE MODE // 2020.09.30 @ 01:49:01 Player: Xeram Result: Destroyed by as-33098 with Assembled Blade Performance ------------- Evolutions (0) 0 Regions Visited (2) 400 Robots Destroyed (21) 105 Value Destroyed (506) 506 Prototype IDs (0) 0 Alien Tech Used (0) 0 Bonus (0) 0 TOTAL SCORE: 1011 Bonus ------- None Cogmind --------- Core Integrity 0/250 Matter 300/300 Energy 99/100 System Corruption 1% Temperature Cool (0) Movement Core (50) Location -10/Mines Parts ------- > --- POWER (1) -------- (None) > --- PROPULSION (2) --- (None) > --- UTILITY (2) ------ (None) > --- WEAPON (2) ------- Autogun > --- INVENTORY (4) ---- Hacking Suite Hacking Suite Autogun Autogun Peak State ------------ > --- POWER ------------ Light Nuclear Core > --- PROPULSION ------- Light Treads Light Treads > --- UTILITY ---------- Medium Storage Unit Large Storage Unit > --- WEAPON ----------- Autogun Autogun > --- INVENTORY -------- Ion Engine Light Treads Small Storage Unit Hacking Suite Assault Rifle Autogun Autogun [Rating: 12] Favorites ----------- Power Light Ion Engine Engine Light Ion Engine Power Core Light Nuclear Core Propulsion Light Treads Treads Light Treads Utility Small Storage Unit Storage Small Storage Unit Processor Visual Processing Unit Weapon Autogun Energy Gun Medium Laser Ballistic Gun Autogun Build | -11 -10 -10 ------- Run | Scr Mat Min Slots Evolved . | . . . Power . | . . . Propulsion . | . . . Utility . | . . . Weapon . | . . . Parts Attached 21 | 6 15 . Power 4 | 1 3 . Engine 2 | 1 1 . Core 2 | . 2 . Reactor . | . . . Propulsion 5 | 2 3 . Treads 5 | 2 3 . Leg . | . . . Wheel . | . . . Hover . | . . . Flight . | . . . Utility 5 | 1 4 . Device . | . . . Storage 4 | 1 3 . Processor 1 | . 1 . Hackware . | . . . Protection . | . . . Artifact . | . . . Weapon 7 | 2 5 . Energy Gun 1 | 1 . . Energy Cannon . | . . . Ballistic Gun 6 | 1 5 . Ballistic Cannon . | . . . Launcher . | . . . Special Weapon . | . . . Impact Weapon . | . . . Slashing Weapon . | . . . Piercing Weapon . | . . . Special Melee Weapon . | . . . Unidentified Prototypes . | . . . Parts Lost 5 | . 4 1 Power 1 | . 1 . Propulsion 2 | . 1 1 Utility . | . . . Weapon 2 | . 2 . Highest Loss Streak 3 | . 3 1 Average Slot Usage (%) 88 | . 91 24 Engine 8 | . 8 . Core 4 | . 4 3 Treads 26 | . 27 3 Storage 16 | . 17 3 Processor 4 | . 4 . Energy Gun 3 | . 3 . Ballistic Gun 22 | . 23 14 Naked Turns . | . . . Heaviest Build 43 | 11 43 43 Greatest Support 40 | 40 40 40 Greatest Overweight (x) 4 | 2 4 2 Average Overweight (x) . | . . . Largest Inventory Capacity 16 | 6 16 16 Average Capacity 8 | 4 8 6 Most Carried 9 | . 9 9 Average Carried 3 | . 3 4 Final Capacity 16 | 6 16 4 Final Carried 9 | . 9 4 Class Distribution -------------------- 100% | Mutant Dominant Class ---------------- Mutant | -10/Materials Mutant | -10/Mines Resources | -11 -10 -10 ----------- Run | Scr Mat Min Matter Collected 597 | 173 424 . Remotely . | . . . Salvage Created 693 | . 693 . Parts 49 | . 49 . Haulers Intercepted 1 | . 1 . Recyclers Shooed 1 | . 1 . Parts Field Recycled . | . . . Retrieved Matter . | . . . Parts Self-Destructed . | . . . Prevented . | . . . Kills | -11 -10 -10 ------- Run | Scr Mat Min Combat Hostiles Destroyed 16 | . 16 . Guns 15 | . 15 . AOE 1 | . 1 . Classes Destroyed 6 | . 6 . Hauler 1 | . 1 . Recycler 1 | . 1 . Operator 2 | . 2 . Watcher 1 | . 1 . Swarmer 5 | . 5 . Grunt 11 | . 11 . Best Kill Streak 5 | . 5 . Combat Bots Only 5 | . 5 . Max Kills in Single Turn 1 | . 1 . Gunslinging . | . . . Exploded 1 | . 1 . Melee . | . . . Uniques/NPCs Destroyed . | . . . Combat | -11 -10 -10 -------- Run | Scr Mat Min Damage Taken 1092 | . 752 340 Core 271 | . 121 150 Absorbed by Shields . | . . . Core Remaining (%) 100 | 100 . . Volleys Fired 57 | . 57 . Largest 2 | . 2 . Hottest 70 | . 70 . Shots Fired 114 | . 114 . Gun 114 | . 114 . Cannon . | . . . Launcher . | . . . Special . | . . . Kinetic 98 | . 98 . Thermal 16 | . 16 . Explosive . | . . . Electromagnetic . | . . . Robot Hit Streak 9 | . 9 . Robot Miss Streak 5 | . 5 . Penetration Max . | . . . Secondary Targets 2 | . 2 . Max Gunslinging Chain 1 | . 1 . Shots Hit Robots 68 | . 68 . Core Hits 36 | . 36 . Critical Hits . | . . . Critical Kills . | . . . Critical Parts Destroyed . | . . . Melee Attacks . | . . . Impact . | . . . Slashing . | . . . Piercing . | . . . Sneak Attacks . | . . . Combat Hostiles . | . . . Follow-up Attacks . | . . . Damage Inflicted 691 | . 691 . Guns 687 | . 687 . Cannons . | . . . Explosions . | . . . Melee . | . . . Ramming 4 | . 4 . Kinetic 549 | . 549 . Thermal 138 | . 138 . Explosive . | . . . Electromagnetic . | . . . Impact . | . . . Slashing . | . . . Piercing . | . . . Highest Corruption 1 | . 1 1 Average Corruption 1 | . 1 1 Corruption Purged . | . . . Effects 2 | . 2 . Message Errors 2 | . 2 . Overload Shots . | . . . Overflow Damage . | . . . Projectiles . | . . . Explosions . | . . . Melee . | . . . Knockbacks . | . . . Impact . | . . . Kinetic . | . . . Secondary . | . . . Self-Inflicted Damage . | . . . Shots . | . . . Rammed 1 | . 1 . Targets Rammed 1 | . 1 . Kicked . | . . . Crushed . | . . . Highest Temperature 72 | . 72 2 Average Temperature 18 | . 18 2 Received Heat Transfer 269 | . 249 20 Siege Activations . | . . . Robots Corrupted . | . . . Combat Hostiles . | . . . Parts Fried . | . . . Impact Corruptions . | . . . Robots Melted . | . . . Combat Hostiles . | . . . Parts Melted 1 | . 1 . Heat Transferred 407 | . 407 . Parts Sabotaged . | . . . Parts Stolen . | . . . Parts Stripped . | . . . Power Chain Reactions . | . . . Missiles Intercepted . | . . . Alert | -11 -10 -10 ------- Run | Scr Mat Min Peak Influence 302 | . 302 44 Initial 44 | . . 44 Average 130 | . 142 34 Maximum Alert Level 1 | . 1 . Low Security (%) 71 | 100 68 100 Level 1 28 | . 31 . Level 2 . | . . . Level 3 . | . . . Level 4 . | . . . Level 5 . | . . . High Security . | . . . Max Security . | . . . Squads Dispatched 4 | . 4 . Investigation 2 | . 2 . Extermination . | . . . Reinforcement 2 | . 2 . Assault . | . . . Garrison . | . . . Intercept . | . . . Construction Impeded . | . . . Haulers Reinforced . | . . . Stealth | -11 -10 -10 --------- Run | Scr Mat Min Distress Signals 3 | . 3 . Communications Jammed . | . . . Distress Signals . | . . . Times Spotted 53 | . 32 21 Peak Tracking Total 20 | . 7 20 Tactical Retreats 3 | . 1 2 Traps | -11 -10 -10 ------- Run | Scr Mat Min Traps Triggered 6 | . 6 . Indirectly . | . . . Trap Hack Attempts . | . . . Triggered . | . . . Disarmed . | . . . Reprogrammed . | . . . Reused . | . . . Traps Extracted . | . . . Installed . | . . . Triggered . | . . . Machines | -11 -10 -10 ---------- Run | Scr Mat Min Machines Disabled . | . . . Max in Single Turn . | . . . Machines Sabotaged . | . . . Garrisons Compromised . | . . . Overloaded Fab Kills . | . . . Fab Network Shutdowns . | . . . Hacking | -11 -10 -10 --------- Run | Scr Mat Min Machines Accessed 2 | . 2 . Terminals 1 | . 1 . Fabricators . | . . . Repair Stations . | . . . Recycling Units 1 | . 1 . Scanalyzers . | . . . Garrison Access . | . . . Total Hacks 5 | . 5 . Successful 2 | . 2 . Failed 3 | . 3 . Catastrophic . | . . . Database Lockouts . | . . . Manual . | . . . Terminals 2 | . 2 . Fabricators . | . . . Repair Stations . | . . . Recycling Units 3 | . 3 . Scanalyzers . | . . . Garrison Access . | . . . Terminal Hacks . | . . . Fabricator Hacks . | . . . Repair Station Hacks . | . . . Recycling Unit Hacks 2 | . 2 . Report Inventory 1 | . 1 . Retrieve Matter 1 | . 1 . Scanalyzer . | . . . Garrison Access Hacks . | . . . Unauthorized Hacks . | . . . Terminals . | . . . Fabricators . | . . . Repair Stations . | . . . Recycling Units . | . . . Scanalyzers . | . . . Garrison Access . | . . . Data Cores Recovered . | . . . Used . | . . . Hacking Detections 2 | . 2 . Full Trace Events . | . . . Feedback Events . | . . . Feedback Blocked . | . . . Robot Schematics Acquired . | . . . Robots Built . | . . . Matter . | . . . Time . | . . . Total Robot Build Rating . | . . . Part Schematics Acquired . | . . . Parts Built . | . . . Matter . | . . . Time . | . . . Total Part Build Rating . | . . . Parts Repaired . | . . . Time . | . . . Parts Recycled . | . . . Recycled Matter . | . . . Retrieved Matter . | . . . Retrieved Components . | . . . Parts Scanalyzed . | . . . Part Schematics Acquired . | . . . Parts Damaged . | . . . Bothacking | -11 -10 -10 ------------ Run | Scr Mat Min Used RIF Installer . | . . . Robots Hacked . | . . . Non-combat . | . . . Combat . | . . . Robot Hacks Applied . | . . . Relay Couplers Released . | . . . Robots Rewired . | . . . Allies Hacked . | . . . Hacks Repelled . | . . . Allies | -11 -10 -10 -------- Run | Scr Mat Min Total Allies . | . . . Largest Group . | . . . Highest-Rated Group . | . . . Highest-Rated Ally . | . . . Total Orders . | . . . Ally Attacks . | . . . Total Damage . | . . . Kills . | . . . Allies Corrupted . | . . . Allies Melted . | . . . Intel | -11 -10 -10 ------- Run | Scr Mat Min Robot Analysis Total . | . . . Derelict Logs Recovered . | . . . Drone Launches . | . . . Drone Recoveries . | . . . Exploration | -11 -10 -10 ------------- Run | Scr Mat Min Turns Passed 1137 | 60 1029 48 Spaces Moved 603 | 37 489 77 Core 89 | 13 2 74 Treads 514 | 24 487 3 Legs . | . . . Wheels . | . . . Hover . | . . . Flight . | . . . Fastest Speed 50 | 50 150 50 Average Speed 149 | 141 165 55 Slowest Speed 250 | 160 250 200 Overloaded Moves . | . . . Propulsion Burnouts . | . . . Robots Hopped . | . . . Cave-ins Triggered . | . . . Exploration Rate (%) 39 | 4 81 32 Regions Visited 2 Branch Regions 1 Pre-discovered Areas . | . . . Known Exits Taken . | . . . Unknown Exits Taken 2 | 1 1 . Scrap Searched . | . . . Spaces Dug . | . . . Terrain Destroyed . | . . . Melee . | . . . Projectile . | . . . AOE . | . . . Terrain Rammed . | . . . Walls Destroyed . | . . . Machines Disabled . | . . . Actions | -11 -10 -10 --------- Run | Scr Mat Min Total 729 | 42 600 87 Wait 30 | . 30 . Move 601 | 36 488 77 Hop . | . . . Pick Up 7 | . 7 . Fast Attach 17 | 6 11 . Attach 2 | . 2 . Detach 4 | . 2 2 Swap 2 | . 2 . Drop 8 | . . 8 Fire 57 | . 57 . Melee . | . . . Ram . | . . . Kick . | . . . Crush 1 | . 1 . Escape Stasis . | . . . Rewire . | . . . Trap . | . . . Miscellaneous . | . . . Route ------- -11/Scrapyard -10/Materials (discovered 4 exits: [*Mat x3] / [*Min]) -10/Mines (discovered 1 exit: [*Mat]) History --------- Turn | Location | Event 17 | -11/Scrapyard | Discovered new exit (range 16) 61 | -11/Scrapyard | Entered Materials 228 | -10/Materials | Discovered new exit (range 12) 309 | -10/Materials | Build established: Mutant 424 | -10/Materials | Lost 3 parts (1p1n1w) 486 | -10/Materials | Discovered new exit (range 5) 672 | -10/Materials | Discovered new exit (range 18) 887 | -10/Materials | Discovered new exit (range 15) 1090 | -10/Materials | Entered Mines 1091 | -10/Mines | Assembled infested the area 1094 | -10/Mines | Core integrity fell below 50% 1100 | -10/Mines | Core integrity fell below 20% 1122 | -10/Mines | A weapon hastily lodged in a ceiling crevice suddenly fell to the ground 1130 | -10/Mines | Discovered new exit (range 12) 1138 | -10/Mines | Destroyed by as-33098 with Assembled Blade Last Messages --------------- 01085_ UUBD>UUAB5: XIB NCCE LOCATION=UNKNOWN GOAL=ESCAPE 01091_ ALERT: Infestation in the mines, dispatching Demolisher response squad. 01092_ Lgt. Treads destroyed. 01096_ Dropped Lgt. Treads. 01097_ Dropped Assault Rifle. 01097_ Dropped Ion Engine. 01098_ Dropped Sml. Storage Unit. 01098_ Dropped Med. Storage Unit. 01100_ Dropped Lrg. Storage Unit. 01100_ Dropped Lgt. Treads. 01101_ Dropped Lgt. Nuclear Core. 01108_ T-07 Excavator destroyed. 01122_ A Plasma Flamer has been hastily shoved under some rubble with a note attached: "One is never enough." 01130_ EXIT=FOUND 01131_ K-01 Serf collects debris. 01136_ K-01 Serf destroyed. Map ----- +----------------------------------------------------+ | | | | | | | | | | | | | | | | | | | | | ???????????????????????????????????? | | ???????????????????????????????????? | | ???????????????????????????????????? | | ???????????????????????????????????? | | ???????????????????????????????????? | | ??????????????????????????????????## | | ?????????????????????????????????## | | ???????????????????????????????### | | ?????????????????????????????### | | ????????????????????????????## | | ????????????????????????????# | | ??#######???????????????????# | | ??# ##################### | | ??# a =%! | | ??# k a = | | ??# < ###@############# #### | | | ??# #?# #???????????# #??## | | ??# #?# #???????????# #???### # | | ??#######?# #???????????# ?????#### | | ??????????# #???????????# #????????? | | ??????????# #??????????? #????????? | | ??????????# #???????????###????????? | | ??????????# #??????????????????????? | | ??????????# #??????????????????????? | | ??????????? ???????????????????????? | | ??????????? ???????????????????????? | | ??????????? ???????????????????????? | | ??????????? ???????????????????????? | | ???????????u???????????????????????? | | ??????????? ???????????????????????? | | ??????????? ???????????????????????? | | ???????????????????????????????????? | | ???????????????????????????????????? | | ???????????????????????????????????? | | ???????????????????????????????????? | | ???????????????????????????????????? | | ???????????????????????????????????? | | ???????????????????????????????????? | | ???????????????????????????????????? | | ???????????????????????????????????? | +----------------------------------------------------+ Best States ------------- Heat Dissipation 25 Energy Generation 14 Energy Capacity 250 Matter Stores 300 Matter Capacity 300 Sight Range 18 Terrain Scan Density 10 Evasion (%) 50 Recoil Reduction 2 Item Schematics ----------------- None Robot Schematics ------------------ None Fabricated ------------ Nothing Alien Tech Used ----------------- None Achievements -------------- None Challenges ------------ None Game ------ Seed TractorReactiveThruster Manual? 0 Play Time 00:09:41 Cumulative 34.5 hours Start 2020.09.30 @ 01:40:14 End 2020.09.30 @ 01:49:01 Sessions 1 Manual Loads 0 Difficulty Rogue Special Mode None Game No. 38 Rogue 37 Adventurer 1 Explorer 0 Win Type - Total 1 Types 1/0/0/0/0/0/0/0/0 Lore% 27 Gallery% 43 Achievement% 35 Wizard Run 0 Options --------- ASCII 0 Keyboard 1 Movement Numpad Keybinds 0 Fullscreen 1 Font 18/SmallcapsGlow Map View 76x50 Tactical HUD 1 Map Filters NONE Filters NONE Steam 1 RUN: d1d92a11-44da-477d-b42d-bfd56c337e82